bitfinex-derivatives/quotes_ETHF0:USTF0_20250520
["timestamp","ask_amount","ask_price","bid_price","bid_amount"]
[1747710274465,0.77921,2566.1,2565.9,3.98705]
[1747710274654,3.7264,2566.0,2565.5,3.2078]
[1747710274861,4.50565,2566.0,2565.8,0.77927]
[1747710275062,3.7264,2566.0,2565.9,0.77926]
[1747710275559,3.7264,2566.0,2565.6,0.00585263]
[1747710275560,0.00585263,2566.2,2566.1,0.7792]
[1747710275960,0.00585263,2566.2,2565.8,3.2078]
[1747710276163,0.00585263,2566.2,2566.1,0.7792]
[1747710276358,3.2078,2567.3,2566.1,12.2488]
[1747710276558,1.9243,2566.7,2566.6,0.77905]
[1747710277060,2.70333,2566.7,2566.2,1.9889]
[1747710277260,2.70333,2566.7,2566.4,0.7791]
[1747710277457,3.89269,2568.3,2566.2,1.9889]
[1747710277666,0.34466308,2568.7,2568.6,0.77844]
[1747710277963,0.0678157,2569.7,2568.6,0.77844]
[1747710277964,4.47481587,2569.9,2569.8,0.77808]
[1747710278163,2.17682587,2569.9,2569.8,13.32198018]
[1747710278357,0.26945587,2569.9,2569.8,18.32198018]
[1747710278558,16.66260756,2570.1,2570.0,0.77801]
[1747710278759,14.71638395,2570.1,2570.0,0.77801]
[1747710279059,3.62791259,2570.1,2570.0,9.81801]
[1747710279260,3.62791259,2570.1,2570.0,10.12976005]
[1747710279662,6.08661259,2570.1,2570.0,10.12976005]
[1747710281459,6.018896,2570.1,2570.0,10.12976005]
[1747710282168,2.4587,2570.1,2570.0,10.12976005]
[1747710282762,2.4587,2570.1,2570.0,1.08976005]
[1747710283162,2.4587,2570.1,2570.0,0.77801]
[1747710285571,4.00799,2570.1,2569.8,3.21363964]
[1747710285871,1.9158,2570.0,2569.9,0.77804]
[1747710286271,3.46509,2570.0,2569.9,0.77804]
[1747710286861,1.9158,2570.0,2569.9,0.77804]
[1747710287668,2.4587,2570.1,2570.0,0.77801]
[1747710289569,4.00799,2570.1,2570.0,0.77801]
[1747710290066,4.00799,2570.1,2569.8,3.21363964]
[1747710290269,1.9775,2570.0,2569.9,0.77804]
[1747710290463,2.4587,2570.1,2570.0,0.77801]
[1747710290867,2.4587,2570.1,2569.8,3.21363964]
[1747710291068,1.9269,2570.0,2569.9,0.77804]
[1747710291270,2.4587,2570.1,2570.0,0.77801]
[1747710291468,2.4587,2570.1,2570.0,2.73981]
[1747710291870,2.4587,2570.1,2570.0,11.76981]
[1747710292573,1.9587,2570.1,2570.0,11.76981]
[1747710294582,1.09528,2570.1,2570.0,11.76981]
[1747710297484,2.6206,2570.4,2570.3,0.77792]
[1747710297793,2.6206,2570.4,2570.3,3.98572]
[1747710298585,4.16989,2570.4,2570.3,3.2078]
[1747710298787,2.6206,2570.4,2570.3,3.98572]
[1747710298989,1.33665,2570.4,2570.3,13.17772]
[1747710299185,1.8182,2571.0,2570.9,0.77774]
[1747710299387,1.8182,2571.0,2570.9,3.98554]
[1747710299691,3.36749,2571.0,2570.9,3.98554]
[1747710301292,0.0057,2571.2,2571.1,0.77768]
[1747710301494,3.2078,2572.6,2571.0,1.8864]
[1747710301792,1.54929,2573.1,2572.2,3.2078]
[1747710301988,1.54929,2573.1,2571.5,0.00583964]
[1747710301989,1.8508,2573.0,2572.5,3.2078]
[1747710302387,3.40009,2573.0,2572.9,0.77714]
[1747710302588,3.40009,2573.0,2572.8,0.77716]
[1747710302882,0.77715,2572.9,2572.5,3.2078]
[1747710303091,1.9696,2572.8,2571.9,3.2078]
[1747710303295,3.2078,2572.6,2571.9,3.2078]
[1747710303490,1.9696,2572.5,2571.9,3.2078]
[1747710303991,0.77734,2572.3,2571.9,3.2078]
[1747710304187,2.74695,2572.2,2571.9,3.2078]
[1747710304490,1.9696,2572.2,2571.9,3.98524]
[1747710304796,1.9696,2572.2,2571.9,3.2078]
[1747710305295,4.7096,2572.2,2571.9,3.2078]
[1747710305696,0.77739,2572.1,2571.9,3.2078]
[1747710305895,2.74701,2572.0,2571.9,3.2078]
[1747710306095,2.74701,2572.0,2571.2,11.1716]
[1747710306096,4.7096,2572.0,2571.5,3.21363964]
[1747710306795,1.9374,2571.9,2571.5,3.21363964]
[1747710306992,2.74,2572.0,2571.9,0.77744]
[1747710307199,3.98508,2572.5,2572.1,0.77737]
[1747710307398,3.2078,2572.5,2571.8,3.2078]
[1747710307702,7.0115,2572.7,2572.6,0.77723]
[1747710308001,3.902,2572.7,2572.6,0.77723]
[1747710308203,3.902,2572.7,2572.3,3.2078]
[1747710308495,2.74,2581.7,2572.4,0.77728]
[1747710308496,3.2078,2573.2,2572.4,0.77728]
[1747710308801,0.77715,2572.9,2572.5,0.78308964]
[1747710309001,3.2078,2573.2,2572.5,0.78308964]
[1747710309002,0.77718,2572.8,2572.5,0.00583964]
[1747710309201,3.2078,2573.2,2572.5,0.00583964]
[1747710309498,0.77715,2572.9,2572.5,0.00583964]
[1747710309699,3.2078,2573.2,2572.5,0.00583964]
[1747710309897,3.2078,2573.2,2572.5,0.38617004]
[1747710310089,3.109,2573.1,2572.5,1.16342004]
[1747710310288,3.109,2573.1,2572.6,3.2078]
[1747710310504,3.109,2573.1,2572.8,0.77715]
[1747710310703,3.109,2573.1,2573.0,0.77711]
[1747710311099,3.109,2573.1,2573.0,5.77711]
[1747710311403,2.25083,2573.1,2573.0,7.76001]
[1747710311604,1.75083,2573.1,2573.0,9.185]
[1747710311803,1.75083,2573.1,2573.0,9.96211]
[1747710312000,1.75083,2573.1,2573.0,11.94501]
[1747710312204,0.77687,2573.9,2573.0,16.1679]
[1747710312510,3.2078,2574.3,2573.6,3.2078]
[1747710313005,1.7887,2574.4,2573.9,3.2078]
[1747710313199,1.7887,2574.4,2573.9,3.21362762]
[1747710313514,0.77681,2574.0,2573.9,3.21362762]
[1747710313708,3.2078,2574.3,2573.9,3.21362762]
[1747710313906,1.7887,2574.4,2573.9,3.21362762]
[1747710314102,0.77681,2574.0,2573.9,3.21362762]
[1747710314806,0.77681,2574.0,2573.9,0.00582762]
[1747710315207,3.51681,2574.0,2573.9,0.00582762]
[1747710315407,2.74,2574.0,2573.9,0.00582762]
[1747710315703,7.74,2574.0,2573.1,3.2078]
[1747710316008,0.77694,2573.6,2573.1,12.3908]
[1747710316500,0.77705,2573.2,2573.1,3.2078]
[1747710316701,0.00574425,2573.4,2573.3,0.77702]
[1747710316906,0.00574425,2573.4,2573.1,3.2078]
[1747710317208,0.77704,2573.3,2573.1,3.98488]
[1747710317802,2.74574425,2573.4,2573.3,0.77702]
[1747710318204,0.00574425,2573.4,2573.3,0.77702]
[1747710319108,2.74574425,2573.4,2573.3,0.77702]
[1747710320198,2.74574425,2573.4,2573.3,1.14145098]
[1747710320401,2.24574425,2573.4,2573.3,6.14145098]
[1747710320601,2.24574425,2573.4,2573.3,8.06125098]
[1747710321306,2.2165,2573.5,2573.4,0.77699]
[1747710321511,2.2165,2573.5,2573.4,14.97459]
[1747710321811,1.94195,2574.1,2573.4,13.16578]
[1747710322012,5.1497,2574.2,2573.5,0.77696]
[1747710322310,0.77687,2573.8,2573.5,0.77694]
[1747710322814,2.74,2574.1,2573.4,3.2078]
[1747710323012,0.77688,2573.8,2573.5,0.77694]
[1747710323210,3.51688,2573.8,2573.5,0.77694]
[1747710323407,2.74,2573.8,2573.7,3.9847]
[1747710323607,2.74,2573.8,2573.7,3.2078]
[1747710323806,8.51687,2573.8,2573.7,3.2078]
[1747710324001,8.51687,2573.8,2573.3,3.57223098]
[1747710324002,7.74,2573.8,2573.3,3.57223098]
[1747710324209,0.77695,2573.6,2573.3,13.52923098]
[1747710324407,0.77695,2573.6,2573.4,0.77698]
[1747710324908,2.74,2573.8,2573.4,0.77698]
[1747710324909,1.18599313,2573.8,2573.4,0.77698]
[1747710325114,0.77699,2573.4,2573.3,0.36443098]
[1747710325417,0.77693,2573.6,2573.5,0.36443098]
[1747710326314,2.74,2573.6,2573.5,1.14139098]
[1747710326815,8.51693,2573.6,2573.5,0.36443098]
[1747710327014,0.77702,2573.3,2573.2,1.43010904]
[1747710327315,2.68717,2573.5,2572.9,6.18232968]
[1747710327516,2.68717,2573.5,2573.2,4.02823501]
[1747710327720,1.9102,2573.5,2573.2,4.02823501]
[1747710327914,0.77701,2573.4,2573.2,4.80526501]
[1747710328216,0.77702,2573.3,2573.2,4.80526501]
[1747710328518,0.77702,2573.3,2573.2,0.82043501]
[1747710329213,3.51702,2573.3,2573.2,0.82043501]
[1747710329413,3.51702,2573.3,2573.2,1.59748501]
[1747710329714,3.51702,2573.3,2573.2,0.82043501]
[1747710329913,0.77706,2573.2,2573.1,0.77707]
[1747710330112,3.51706,2573.2,2573.1,0.77707]
[1747710330615,0.77708,2573.1,2573.0,0.77708]
[1747710330812,2.74,2573.2,2573.0,0.7771]
[1747710331012,3.51706,2573.2,2573.1,0.77708]
[1747710331317,2.74,2573.2,2573.1,0.77708]
[1747710331521,3.51705,2573.2,2573.1,0.77708]
[1747710332016,0.77708,2573.1,2573.0,0.77709]
[1747710332417,3.51707,2573.2,2573.1,0.77708]
[1747710332718,2.74,2573.2,2572.9,4.23951968]
[1747710332919,0.77709,2573.1,2573.0,0.77709]
[1747710333114,3.51709,2573.1,2573.0,0.77709]
[1747710333320,3.51709,2573.1,2573.0,1.60158194]
[1747710333520,2.74,2573.1,2573.0,1.60158194]
[1747710334018,3.51708,2573.1,2573.0,0.82449194]
[1747710336526,0.77711,2573.0,2572.9,1.80885968]
[1747710337220,0.77711,2573.0,2572.9,1.03171968]
[1747710337425,0.77711,2573.0,2572.9,4.23951968]
[1747710338028,3.51711,2573.0,2572.9,4.23951968]
[1747710338326,2.74,2573.0,2572.9,5.01665968]
[1747710338517,2.74,2573.0,2572.9,6.95035968]
[1747710339122,2.74,2573.0,2572.9,7.29943358]
[1747710339320,0.77703,2573.3,2573.1,0.77705]
[1747710339521,0.77702,2573.3,2572.9,6.52229358]
[1747710339828,0.77702,2573.3,2573.1,0.77706]
[1747710340026,0.77702,2573.3,2573.1,0.77707]
[1747710340319,3.51702,2573.3,2573.2,0.3490739]
[1747710340918,2.74,2573.3,2573.2,4.3339239]
[1747710341121,2.74,2573.3,2573.2,13.6839239]
[1747710342214,0.77687,2573.8,2573.5,0.77695]
[1747710342417,2.68374,2573.9,2573.6,0.77692]
[1747710342619,0.77688,2573.8,2573.5,3.98474]
[1747710343015,2.68376,2573.9,2573.6,0.77692]
[1747710343225,4.6469,2573.9,2573.7,1.1259539]
[1747710343530,4.6469,2573.9,2573.7,0.3490739]
[1747710343732,5.42374,2573.9,2573.7,1.1259539]
[1747710344031,5.42374,2573.9,2573.8,0.3490739]
[1747710344928,4.6469,2573.9,2573.8,0.33346556]
[1747710345129,1.58332308,2575.8,2574.3,3.2078]
[1747710345430,1.8331,2575.4,2575.3,0.77641]
[1747710345619,1.58332308,2575.8,2575.5,3.2078]
[1747710346122,1.975,2575.7,2575.6,0.77632]
[1747710346724,1.975,2575.7,2575.6,2.61102]
[1747710347030,1.975,2575.7,2575.5,5.9478]
[1747710347223,0.77632,2575.6,2575.5,5.9478]
[1747710347523,0.77632,2575.6,2575.5,6.55255212]
[1747710347731,3.7665,2575.7,2575.5,6.55255212]
[1747710347921,1.975,2575.6,2575.5,6.55255212]
[1747710348828,2.75132,2575.6,2575.5,6.55255212]
[1747710349634,1.975,2575.6,2575.5,6.55255212]
[1747710349932,2.75132,2575.6,2575.5,6.55255212]
[1747710350235,2.75132,2575.6,2575.5,3.81255212]
[1747710350435,2.75132,2575.6,2575.5,3.2078]
[1747710351137,0.77641,2575.3,2575.2,3.2078]
[1747710354543,2.7476,2575.4,2575.2,3.2078]
[1747710354736,0.77641,2575.3,2575.2,3.2078]
[1747710354934,0.77641,2575.3,2575.2,5.0675]
[1747710355741,0.77641,2575.3,2575.2,3.2078]
[1747710357049,0.7765,2575.0,2574.9,0.29914556]
[1747710357342,3.9843,2575.0,2574.9,0.29914556]
[1747710357540,0.7765,2575.0,2574.9,0.29914556]
[1747710361457,4.0235,2575.0,2574.9,0.29914556]
[1747710363050,9.0235,2575.0,2574.9,5.56e-06]
[1747710366353,4.0235,2575.0,2574.9,5.56e-06]
[1747710366550,0.7765,2575.0,2574.9,5.56e-06]
[1747710366750,2.4064,2575.0,2574.9,5.56e-06]
[1747710367253,2.4064,2575.0,2574.9,2.74000556]
[1747710367455,2.4064,2575.0,2574.9,4.44100556]
[1747710367655,2.4064,2575.0,2574.9,4.441]
[1747710369759,1.6299,2575.0,2574.9,4.441]
[1747710369963,1.9406,2575.9,2574.9,9.441]
[1747710370260,0.7764,2575.4,2575.2,3.2078]
[1747710370459,4.9381,2576.0,2575.3,1.5937]
[1747710370856,0.77633,2575.6,2575.4,0.77636]
[1747710371052,0.77635,2575.5,2575.4,3.51636]
[1747710371258,0.77635,2575.5,2575.4,3.51638]
[1747710371660,0.77635,2575.5,2575.4,2.74]
[1747710373362,0.77641,2575.3,2575.2,3.2078]
[1747710373658,3.2078,2575.7,2575.6,0.77632]
[1747710373860,0.77628,2575.8,2575.6,3.9841]
[1747710374163,0.77625,2575.9,2575.6,3.2078]
[1747710374361,0.77628,2575.8,2575.6,3.9841]
[1747710374556,1.6889,2576.1,2575.6,3.2078]
[1747710374858,1.6889,2576.1,2575.5,2.74]
[1747710374859,0.77632,2575.6,2575.5,2.74]
[1747710375261,0.77638,2575.4,2575.3,3.2078]
[1747710375755,3.2078,2575.7,2574.9,3.2078]
[1747710376060,0.77638,2575.4,2575.3,0.77639]
[1747710376267,0.77647,2575.1,2575.0,0.3320297]
[1747710378661,5.77647,2575.1,2575.0,1e-08]
[1747710378860,0.77647,2575.1,2575.0,1e-08]
[1747710383258,2.45737,2575.1,2575.0,2.74000001]
[1747710384261,2.45737,2575.1,2575.0,1e-08]
[1747710389864,11.94737,2575.1,2575.0,1e-08]
[1747710396574,16.94737,2575.1,2575.0,1e-08]
[1747710396769,2.45737,2575.1,2575.0,1e-08]
[1747710400070,0.77653,2574.9,2574.8,0.00582762]
[1747710401277,2.44073,2574.9,2574.8,0.00582762]
[1747710401679,2.44073,2574.9,2574.8,0.32685028]
[1747710401879,0.77653,2574.9,2574.8,0.32685028]
[1747710402381,2.44073,2574.9,2574.8,0.32685028]
[1747710410083,3.0884375,2574.9,2574.8,0.32685028]
[1747710410887,0.77662,2574.6,2574.5,2.30935212]
[1747710411887,0.77662,2574.6,2574.5,3.08600212]
[1747710412091,0.77662,2574.6,2574.5,2.30935212]
[1747710413091,0.77662,2574.6,2574.5,1.7046]
[1747710415994,0.77669,2574.4,2574.3,0.00582762]
[1747710416192,0.77669,2574.4,2574.3,1.61342762]
[1747710416394,0.77669,2574.4,2574.3,0.00582762]
[1747710416596,3.98449,2574.4,2574.3,0.00582762]
[1747710416995,5.65839,2574.4,2574.3,0.00582762]
[1747710417192,0.77681,2574.0,2573.9,0.82449194]
[1747710417694,0.77681,2574.0,2573.9,1.60133194]
[1747710418086,0.77679,2574.1,2573.9,1.60133194]
[1747710418294,3.2078,2574.4,2574.0,1.6076]
[1747710418589,0.77675,2574.2,2574.1,0.77676]
[1747710418795,0.77675,2574.2,2574.1,2.42616]
[1747710419092,0.77673,2574.3,2574.1,2.42616]
[1747710419292,0.77673,2574.3,2574.2,1.5879]
[1747710421092,1.4243175,2574.7,2574.2,8.52974]
[1747710421290,0.77665,2574.5,2574.4,3.2078]
[1747710421591,0.77669,2574.4,2574.3,1.7483]
[1747710421996,1.4243975,2574.4,2574.3,1.7483]
[1747710422195,4.1643975,2574.4,2574.3,1.7483]
[1747710423696,4.1643975,2574.4,2574.3,2.05919976]
[1747710426000,3.51669,2574.4,2574.3,2.05919976]
[1747710427005,3.51669,2574.4,2574.3,2.83591976]
[1747710427902,3.51669,2574.4,2574.3,2.05919976]
[1747710428300,3.51669,2574.4,2574.3,2.83591976]
[1747710428903,3.51669,2574.4,2574.3,3.11518577]
[1747710430015,3.51669,2574.4,2574.3,2.33846577]
[1747710430611,0.77687,2573.8,2573.7,0.83031956]
[1747710430919,9.84587,2573.8,2573.7,0.83031956]
[1747710431112,12.58587,2573.8,2573.7,2.57711956]
[1747710432011,14.28017,2573.8,2573.7,0.83031956]
[1747710432223,0.77696,2573.5,2573.1,3.79088674]
[1747710432414,0.77705,2573.2,2573.1,2.04408674]
[1747710432711,3.98485,2573.2,2573.1,2.04408674]
[1747710432915,0.77714,2572.9,2572.8,1.7468]
[1747710433125,3.51714,2572.9,2572.8,1.7468]
[1747710433309,2.74,2572.9,2572.8,1.7468]
[1747710433510,3.51714,2572.9,2572.8,1.7468]
[1747710434118,0.7772,2572.7,2572.6,3.21362762]
[1747710434416,2.74,2572.9,2572.6,3.21362762]
[1747710434717,1.8533,2572.8,2572.6,3.21362762]
[1747710434921,1.8533,2572.8,2572.6,0.00582762]
[1747710435112,1.8533,2572.8,2572.6,0.78304762]
[1747710435113,4.5933,2572.8,2572.6,0.78304762]
[1747710435313,4.5933,2572.8,2572.7,1.8132]
[1747710435722,5.37047,2572.8,2572.6,0.00582762]
[1747710436116,0.7772,2572.7,2572.6,0.00582762]
[1747710436318,2.6305,2572.7,2572.6,0.00582762]
[1747710437122,5.3705,2572.7,2572.6,0.00582762]
[1747710437723,2.74,2572.7,2572.6,0.78305762]
[1747710437916,2.74,2572.7,2572.6,3.99085762]
[1747710438118,9.072,2573.0,2572.6,3.21362762]
[1747710438415,0.7772,2572.7,2572.6,0.00582762]
[1747710438721,3.985,2572.7,2572.6,0.00582762]
[1747710439125,6.725,2572.7,2572.6,0.00582762]
[1747710439822,3.5172,2572.7,2572.6,0.00582762]
[1747710440026,6.725,2572.7,2572.6,0.00582762]
[1747710441717,12.5902,2572.7,2572.6,0.00582762]
[1747710442026,12.5902,2572.7,2572.6,0.78305762]
[1747710442027,11.813,2572.7,2572.6,0.78305762]
[1747710442226,9.8502,2572.7,2572.6,0.78305762]
[1747710442428,9.8502,2572.7,2572.6,0.00582762]
[1747710442626,13.058,2572.7,2572.6,0.00582762]
[1747710443328,15.798,2572.7,2572.6,0.00582762]
[1747710445127,12.5902,2572.7,2572.6,0.00582762]
[1747710445320,2.74,2572.7,2572.6,0.78305762]
[1747710446129,0.77718,2572.8,2572.7,0.7772]
[1747710446327,0.77718,2572.8,2572.7,2.4694]
[1747710446525,0.77718,2572.8,2572.7,1.6922]
[1747710446927,0.7772,2572.7,2572.6,0.00582762]
[1747710447120,1.7633,2572.7,2572.6,0.78305762]
[1747710447327,9.065,2572.9,2572.6,0.00582762]
[1747710447525,9.065,2572.9,2572.8,0.77717]
[1747710448125,1.7633,2573.0,2572.6,1.69802762]
[1747710448330,4.96882762,2573.1,2573.0,0.77711]
[1747710448331,0.00582762,2573.1,2573.0,0.77711]
[1747710448531,0.78290762,2573.1,2573.0,0.77711]
[1747710449030,0.77711,2573.0,2572.9,1.6922]
[1747710450033,0.77711,2573.0,2572.9,2.46934]
[1747710450327,0.00582762,2573.1,2572.8,3.2078]
[1747710450328,0.77714,2572.9,2572.8,3.2078]
[1747710450535,0.7772,2572.7,2572.6,0.00582762]
[1747710451237,3.5172,2572.7,2572.6,0.00582762]
[1747710452238,4.9724,2572.9,2572.6,1.74372762]
[1747710452538,4.9724,2572.9,2572.8,0.77717]
[1747710453036,3.2078,2572.9,2572.8,0.77717]
[1747710453226,3.98494,2572.9,2572.8,0.77717]
[1747710454137,3.98494,2572.9,2572.7,0.77718]
[1747710454337,3.98494,2572.9,2572.8,1.7379]
[1747710455238,5.71654,2572.9,2572.8,1.7379]
[1747710456641,3.98494,2572.9,2572.8,2.51507]
[1747710456939,3.98494,2572.9,2572.8,1.7379]
[1747710457241,0.77714,2572.9,2572.8,1.7379]
[1747710457738,0.77714,2572.9,2572.1,0.36077939]
[1747710457739,9.9394,2572.9,2572.1,0.36077939]
[1747710457941,3.9851,2572.4,2572.1,2.91353939]
[1747710458130,3.9851,2572.4,2572.2,1.7754]
[1747710458436,0.7773,2572.4,2572.2,1.7754]
[1747710458630,0.77732,2572.3,2572.2,1.7754]
[1747710459233,0.77735,2572.2,2572.1,0.36077939]
[1747710459736,0.77738,2572.1,2572.0,0.00582762]
[1747710459926,5.80188,2572.1,2572.0,0.00582762]
[1747710460125,8.54188,2572.1,2572.0,0.00582762]
[1747710463234,3.2078,2572.1,2572.0,0.00582762]
[1747710463427,9.066,2572.3,2572.0,1.09428696]
[1747710463630,9.84335,2572.3,2572.1,1.8722]
[1747710463838,0.77735,2572.2,2572.1,1.8722]
[1747710464032,2.56415,2572.2,2572.1,1.8722]
[1747710464435,0.77738,2572.1,2572.0,0.31688696]
[1747710464637,5.77198,2572.1,2572.0,0.31688696]
[1747710464835,5.77198,2572.1,2572.0,0.00582762]
[1747710465244,5.77198,2572.1,2572.0,1.80572762]
[1747710466042,3.98518,2572.1,2572.0,1.80572762]
[1747710466336,3.2078,2572.6,2572.0,7.1167774]
[1747710466543,3.2078,2572.6,2572.2,0.77733]
[1747710466735,3.2078,2572.6,2572.0,2.1167774]
[1747710466736,0.77729,2572.4,2572.3,1.7999]
[1747710466937,3.98509,2572.4,2572.3,1.7999]
[1747710468742,3.2078,2572.4,2572.3,2.88826978]
[1747710469246,3.2078,2572.4,2572.3,7.88826978]
[1747710469554,3.2078,2572.4,2572.3,2.88826978]
[1747710471448,3.98509,2572.4,2572.3,0.31104978]
[1747710471648,5.70189,2572.4,2572.3,0.31104978]
[1747710471946,5.70189,2572.4,2572.3,0.67182917]
[1747710473144,8.44189,2572.4,2572.3,0.67182917]
[1747710474447,8.44189,2572.4,2572.3,0.31104978]
[1747710474750,17.50889,2572.4,2572.3,0.31104978]
[1747710479153,14.76889,2572.4,2572.3,0.31104978]
[1747710480350,17.50889,2572.4,2572.3,0.31104978]
[1747710484850,17.50889,2572.4,2572.3,9.78e-06]
[1747710485058,22.50889,2572.4,2572.3,9.78e-06]
[1747710485450,0.77738,2572.1,2572.0,0.00582762]
[1747710485664,3.98518,2572.1,2572.0,0.00582762]
[1747710486257,6.72518,2572.1,2572.0,0.00582762]
[1747710489658,10.36768,2572.1,2572.0,0.00582762]
[1747710489854,0.77756,2571.5,2571.4,1.13835939]
[1747710490048,0.77756,2571.5,2571.4,0.36077939]
[1747710490253,0.77756,2571.5,2571.4,1.13836939]
[1747710490452,2.55526,2571.5,2571.4,1.13836939]
[1747710491362,2.55526,2571.5,2571.4,2.97106939]
[1747710493262,2.55526,2571.5,2571.4,2.61029]
[1747710493462,2.55526,2571.5,2571.4,1.8327]
[1747710493671,0.77759,2571.4,2571.3,0.36077939]
[1747710493872,2.67979,2571.4,2571.3,0.36077939]
[1747710494375,5.41979,2571.4,2571.3,0.36077939]
[1747710496080,0.77762,2571.3,2571.2,0.00582762]
[1747710496271,5.76942,2571.3,2571.2,0.00582762]
[1747710498174,8.50942,2571.3,2571.2,0.00582762]
[1747710503075,5.76942,2571.3,2571.2,0.00582762]
[1747710504178,8.50942,2571.3,2571.2,0.00582762]
[1747710504471,17.57542,2571.3,2571.2,0.00582762]
[1747710506282,14.83542,2571.3,2571.2,0.00582762]
[1747710507375,17.57542,2571.3,2571.2,0.00582762]
[1747710510685,0.77783,2570.6,2570.5,0.25100342]
[1747710510983,0.77782,2570.7,2570.6,0.77781]
[1747710511175,0.77783,2570.6,2570.5,0.25100342]
[1747710511383,3.98563,2570.6,2570.5,0.25100342]
[1747710511577,3.98563,2570.6,2570.5,0.31120374]
[1747710512174,6.72563,2570.6,2570.5,0.31120374]
[1747710512469,8.61363,2570.6,2570.5,0.31120374]
[1747710513476,0.77786,2570.5,2570.4,0.25100342]
[1747710513676,2.65206,2570.5,2570.4,0.25100342]
[1747710514283,5.39206,2570.5,2570.4,0.25100342]
[1747710514984,7.12796,2570.5,2570.4,0.25100342]
[1747710515180,0.77789,2570.4,2570.3,0.00388508]
[1747710515383,2.65209,2570.4,2570.3,5.08e-06]
[1747710515587,7.65209,2570.4,2570.3,5.08e-06]
[1747710516181,10.39209,2570.4,2570.3,5.08e-06]
[1747710517085,14.44709,2570.4,2570.3,5.08e-06]
[1747710517586,5.39209,2570.4,2570.3,5.08e-06]
[1747710518185,14.44709,2570.4,2570.3,5.08e-06]
[1747710527090,0.77808,2569.8,2569.7,0.25100342]
[1747710528190,3.51808,2569.8,2569.7,0.25100342]
[1747710528494,3.51808,2569.8,2569.7,2.37133652]
[1747710529089,0.77808,2569.8,2569.7,2.37133652]
[1747710530794,0.77808,2569.8,2569.7,1.809]
[1747710531294,0.77808,2569.8,2569.7,6.809]
[1747710531494,0.77808,2569.8,2569.7,1.809]
[1747710532497,2.52098,2569.8,2569.7,1.809]
[1747710535395,0.77817,2569.5,2569.4,0.25100342]
[1747710535698,3.98597,2569.5,2569.4,0.25100342]
[1747710536088,6.72597,2569.5,2569.4,0.25100342]
[1747710536289,6.72597,2569.5,2569.2,0.36077939]
[1747710536290,0.77823,2569.3,2569.2,0.36077939]
[1747710536500,9.83623,2569.3,2569.2,0.36077939]
[1747710536995,11.64383,2569.3,2569.2,0.36077939]
[1747710537197,14.38383,2569.3,2569.2,9.39e-06]
[1747710538701,15.55122,2569.3,2568.7,1.8557]
[1747710538903,3.98618,2568.8,2568.7,1.8557]
[1747710539201,0.77846,2568.6,2568.5,1.7842]
[1747710539394,0.77848,2568.5,2568.3,2.63042]
[1747710539702,0.77856,2568.2,2568.1,0.54156507]
[1747710540301,0.77856,2568.2,2568.1,0.85311067]
[1747710540600,6.8417,2568.4,2567.6,0.90285635]
[1747710540798,12.2418,2568.6,2568.1,0.77857]
[1747710541003,3.2078,2568.3,2568.2,3.6364]
[1747710541398,3.98633,2568.3,2568.2,3.6364]
[1747710541599,3.2078,2568.3,2568.2,3.6364]
[1747710543201,3.2078,2568.3,2568.2,4.41496]
[1747710544700,3.2078,2568.3,2568.2,9.41496]
[1747710545612,0.00583942,2568.7,2568.6,0.77844]
[1747710546205,0.78424942,2568.7,2568.3,1.801]
[1747710546400,0.78424942,2568.7,2568.5,0.77847]
[1747710546599,0.00583942,2568.7,2568.6,2.53324]
[1747710546798,0.78424942,2568.7,2568.6,1.7548]
[1747710548805,0.00583942,2568.7,2568.6,2.53324]
[1747710550011,0.78424942,2568.7,2568.6,2.53324]
[1747710550908,0.78424942,2568.7,2568.6,1.7548]
[1747710551501,0.78424942,2568.7,2568.6,2.53324]
[1747710552309,0.00583942,2568.7,2568.6,2.53324]
[1747710553211,0.78424942,2568.7,2568.6,2.53324]
[1747710553600,0.00583942,2568.7,2568.6,2.53324]
[1747710554311,0.78424942,2568.7,2568.6,1.7548]
[1747710554505,2.53544942,2568.7,2568.6,1.7548]
[1747710555510,0.77847,2568.6,2568.4,0.77849]
[1747710555713,2.61547,2568.6,2568.4,2.67169]
[1747710556011,0.77847,2568.5,2568.4,2.67169]
[1747710556212,2.61546,2568.6,2568.5,0.77847]
[1747710556413,1.837,2568.6,2568.5,2.67167]
[1747710556612,1.90823942,2568.7,2568.6,0.77844]
[1747710556613,0.00583942,2568.7,2568.6,0.77844]
[1747710556800,0.00583942,2568.7,2568.6,5.77844]
[1747710557007,3.2078,2569.1,2569.0,0.77832]
[1747710557205,9.036,2569.3,2568.7,3.6301]
[1747710557411,0.77838,2568.8,2568.7,3.6301]
[1747710558305,0.77838,2568.8,2568.7,4.40851]
[1747710558515,2.65847,2568.9,2568.8,0.77838]
[1747710558718,5.84216942,2569.0,2568.9,0.77835]
[1747710558907,5.06383942,2569.0,2568.8,1.909]
[1747710559215,3.21363942,2569.0,2568.9,0.77835]
[1747710559415,0.00583942,2569.0,2568.9,0.77835]
[1747710559806,0.00583942,2569.0,2568.9,1.08982295]
[1747710560414,0.00583942,2569.0,2568.9,2.93762295]
[1747710560611,3.2078,2569.3,2569.2,0.77826]
[1747710561113,9.68373085,2569.6,2569.3,0.77823]
[1747710561114,0.77821,2569.4,2569.3,0.77823]
[1747710561799,0.77821,2569.4,2569.3,1.08970295]
[1747710562005,4.63952027,2569.6,2569.5,0.77817]
[1747710562205,3.86137027,2569.6,2569.4,1.733]
[1747710562405,3.86137027,2569.6,2569.5,0.77817]
[1747710562601,0.77817,2569.5,2569.4,1.733]
[1747710562806,0.7782,2569.4,2569.3,0.31147295]
[1747710563007,0.77835,2568.9,2568.8,1.27395611]
[1747710563208,3.2078,2569.2,2568.8,0.49559611]
[1747710563408,3.2078,2569.2,2569.1,0.77829]
[1747710563614,3.2078,2569.2,2569.0,0.77831]